Cogmind - Beta 10.1 @@@ ROGUE MODE // 2020.09.23 @ 19:05:24 Player: HOTSOUP Result: Destroyed by S-27 Virus with Autogun Performance ------------- Evolutions (5) 2500 Regions Visited (6) 1200 Robots Destroyed (9) 45 Value Destroyed (247) 247 Prototype IDs (1) 20 Alien Tech Used (0) 0 Bonus (0) 0 TOTAL SCORE: 4012 Bonus ------- None Cogmind --------- Core Integrity 0/1000 Matter 202/300 Energy 100/100 System Corruption 3% Temperature Cool (0) Movement Core (50) Location -5/Factory Parts ------- > --- POWER (1) -------- (None) > --- PROPULSION (4) --- (None) > --- UTILITY (10) ----- (None) > --- WEAPON (2) ------- (None) > --- INVENTORY (4) ---- Improved System Backup Module Improved System Backup Module Faulty Thunder Hammer Peak State ------------ > --- POWER ------------ Light Nuclear Core > --- PROPULSION ------- (None) > --- UTILITY ---------- Improved System Backup Module Improved System Backup Module > --- WEAPON ----------- Heavy Flail > --- INVENTORY -------- (None) [Rating: 16] Favorites ----------- Power Light Nuclear Core Engine Deuterium Engine Power Core Light Nuclear Core Propulsion VTOL Module Hover Unit Backup Propulsion I Flight Unit VTOL Module Utility Improved System Backup Module Device Improved System Backup Module Processor Enhanced Optical Array Weapon Heavy Flail Energy Gun Improved Spread Laser Ballistic Gun Assault Rifle Impact Weapon Heavy Flail Build | -11 -10 -9 -8 -7 -6 -5 ------- Run | Scr Mat Mat Mat Fac Fac Fac Slots Evolved 10 | . . 2 2 2 2 2 Power . | . . . . . . . Propulsion 2 | . . . 2 . . . Utility 8 | . . 2 . 2 2 2 Weapon . | . . . . . . . Parts Attached 22 | . 2 3 4 2 5 6 Power 4 | . . . 1 . 1 2 Engine 2 | . . . 1 . . 1 Core 2 | . . . . . 1 1 Reactor . | . . . . . . . Propulsion 8 | . 1 2 3 1 1 . Treads . | . . . . . . . Leg . | . . . . . . . Wheel . | . . . . . . . Hover . | . . . . . . . Flight 8 | . 1 2 3 1 1 . Utility 6 | . . 1 . . 2 3 Device 5 | . . 1 . . 1 3 Storage . | . . . . . . . Processor 1 | . . . . . 1 . Hackware . | . . . . . . . Protection . | . . . . . . . Artifact . | . . . . . . . Weapon 4 | . 1 . . 1 1 1 Energy Gun 1 | . . . . 1 . . Energy Cannon . | . . . . . . . Ballistic Gun 1 | . 1 . . . . . Ballistic Cannon . | . . . . . . . Launcher . | . . . . . . . Special Weapon . | . . . . . . . Impact Weapon 2 | . . . . . 1 1 Slashing Weapon . | . . . . . . . Piercing Weapon . | . . . . . . . Special Melee Weapon . | . . . . . . . Unidentified Prototypes 1 | . . . . 1 . . Parts Lost 21 | . 1 2 2 5 6 5 Power 3 | . . . . 1 1 1 Propulsion 9 | . . 1 2 3 2 1 Utility 4 | . . 1 . . 1 2 Weapon 5 | . 1 . . 1 2 1 Highest Loss Streak 6 | . 1 2 2 5 6 3 Average Slot Usage (%) 20 | . 8 26 34 20 18 20 Core 2 | . . . . . 2 3 Flight 4 | . 2 20 27 12 2 . Device 6 | . . 5 . . 2 8 Processor 1 | . . . . . 5 . Impact Weapon 2 | . . . . . . 4 Naked Turns 155 | . 19 . . 43 9 84 Heaviest Build 13 | . . 1 9 13 8 12 Greatest Support 19 | 3 4 10 19 15 12 5 Greatest Overweight (x) 3 | . . . . 1 1 3 Average Overweight (x) . | . . . . . . . Largest Inventory Capacity 4 | 4 4 4 4 4 4 4 Average Capacity 4 | 4 4 4 4 4 4 4 Most Carried 4 | . . 4 4 1 3 4 Average Carried . | . . 3 1 . 1 . Final Capacity 4 | 4 4 4 4 4 4 4 Final Carried 4 | . . 4 1 . 2 3 Class Distribution -------------------- 96% | Mutant 3% | Sprinter Dominant Class ---------------- Mutant | -10/Materials Mutant | -9/Materials Sprinter | -8/Materials Mutant | -7/Factory Mutant | -6/Factory Mutant | -5/Factory Resources | -11 -10 -9 -8 -7 -6 -5 ----------- Run | Scr Mat Mat Mat Fac Fac Fac Matter Collected 286 | 200 20 . . 34 32 . Remotely . | . . . . . . . Salvage Created 192 | . 20 . . 119 53 . Parts 15 | . 2 . . 9 4 . Haulers Intercepted . | . . . . . . . Recyclers Shooed . | . . . . . . . Parts Field Recycled . | . . . . . . . Retrieved Matter . | . . . . . . . Parts Self-Destructed . | . . . . . . . Prevented . | . . . . . . . Kills | -11 -10 -9 -8 -7 -6 -5 ------- Run | Scr Mat Mat Mat Fac Fac Fac Combat Hostiles Destroyed 5 | . 1 . . 2 2 . Melee 1 | . . . . . 1 . Guns 2 | . 1 . . . 1 . AOE 2 | . . . . 2 . . Classes Destroyed 5 | . 1 . . 4 . . Worker 3 | . . . . 3 . . Builder 1 | . . . . 1 . . Swarmer 3 | . 1 . . . 2 . Duelist 1 | . . . . 1 . . Hunter 1 | . . . . 1 . . Best Kill Streak 5 | . 1 . . 5 2 . Combat Bots Only 2 | . 1 . . 2 2 . Max Kills in Single Turn 2 | . 1 . . 2 1 . Gunslinging . | . . . . . . . Exploded 2 | . . . . 2 . . Melee 1 | . . . . . 1 . Uniques/NPCs Destroyed . | . . . . . . . Combat | -11 -10 -9 -8 -7 -6 -5 -------- Run | Scr Mat Mat Mat Fac Fac Fac Damage Taken 2876 | . 261 117 295 458 461 1284 Core 1945 | . 155 33 163 338 253 1003 Absorbed by Shields 12 | . . . . 12 . . Core Remaining (%) 70 | 100 38 91 70 51 70 . Volleys Fired 28 | . 13 . . 7 8 . Largest 2 | . 1 . . 1 2 . Hottest 75 | . 20 . . 75 60 . Shots Fired 31 | . 13 . . 7 11 . Gun 31 | . 13 . . 7 11 . Cannon . | . . . . . . . Launcher . | . . . . . . . Special . | . . . . . . . Kinetic 13 | . 13 . . . . . Thermal 18 | . . . . 7 11 . Explosive . | . . . . . . . Electromagnetic . | . . . . . . . Robot Hit Streak 6 | . 3 . . 6 3 . Robot Miss Streak 6 | . 3 . . 6 3 . Penetration Max . | . . . . . . . Secondary Targets . | . . . . . . . Shots Hit Robots 18 | . 6 . . 6 6 . Core Hits 18 | . 1 . . 12 4 1 Critical Hits . | . . . . . . . Critical Kills . | . . . . . . . Critical Parts Destroyed . | . . . . . . . Melee Attacks 24 | . . . . . 1 23 Impact 24 | . . . . . 1 23 Slashing . | . . . . . . . Piercing . | . . . . . . . Sneak Attacks . | . . . . . . . Combat Hostiles . | . . . . . . . Follow-up Attacks . | . . . . . . . Damage Inflicted 630 | . 78 . . 453 81 18 Guns 261 | . 78 . . 119 64 . Cannons . | . . . . . . . Explosions 334 | . . . . 334 . . Melee . | . . . . . . . Ramming 35 | . . . . . 17 18 Kinetic 78 | . 78 . . . . . Thermal 517 | . . . . 453 64 . Explosive . | . . . . . . . Electromagnetic . | . . . . . . . Impact . | . . . . . . . Slashing . | . . . . . . . Piercing . | . . . . . . . Highest Corruption 15 | . . . . . 3 15 Average Corruption 6 | . . . . . 3 7 Corruption Purged 12 | . . . . . . 12 Effects 20 | . . . . . . 20 Message Errors 6 | . . . . . . 6 Matter Fused 6 | . . . . . . 6 Heat Flow Errors 1 | . . . . . . 1 Energy Discharges 3 | . . . . . . 3 Data Loss (minor) 2 | . . . . . . 2 Misdirections 2 | . . . . . . 2 Overload Shots . | . . . . . . . Overflow Damage 89 | . . . . 89 . . Projectiles . | . . . . . . . Explosions 89 | . . . . 89 . . Melee . | . . . . . . . Knockbacks . | . . . . . . . Impact . | . . . . . . . Kinetic . | . . . . . . . Secondary . | . . . . . . . Self-Inflicted Damage 389 | . . . . 373 8 8 Shots 5 | . . . . 5 . . Rammed 4 | . . . . . 2 2 Targets Rammed 4 | . . . . . 2 2 Kicked . | . . . . . . . Crushed . | . . . . . . . Highest Temperature 232 | . . . 10 32 . 232 Average Temperature 44 | . . . 6 15 . 116 Received Heat Transfer 120 | . . 30 63 . 18 9 Siege Activations . | . . . . . . . Robots Corrupted . | . . . . . . . Combat Hostiles . | . . . . . . . Parts Fried . | . . . . . . . Impact Corruptions . | . . . . . . . Robots Melted . | . . . . . . . Combat Hostiles . | . . . . . . . Parts Melted 1 | . . . . . 1 . Heat Transferred 559 | . . . . 300 259 . Parts Sabotaged . | . . . . . . . Parts Stolen . | . . . . . . . Parts Stripped . | . . . . . . . Power Chain Reactions . | . . . . . . . Missiles Intercepted . | . . . . . . . Alert | -11 -10 -9 -8 -7 -6 -5 ------- Run | Scr Mat Mat Mat Fac Fac Fac Peak Influence 156 | . 25 31 120 156 118 67 Initial 76 | . . 10 4 49 76 57 Average 37 | . 6 21 54 81 87 24 Maximum Alert Level . | . . . . . . . Low Security (%) 100 | 100 100 100 100 100 100 100 Level 1 . | . . . . . . . Level 2 . | . . . . . . . Level 3 . | . . . . . . . Level 4 . | . . . . . . . Level 5 . | . . . . . . . High Security . | . . . . . . . Max Security . | . . . . . . . Squads Dispatched 10 | . . 1 2 2 2 3 Investigation 2 | . . . 1 1 . . Extermination 1 | . . . . . . 1 Reinforcement 6 | . . 1 1 . 2 2 Assault . | . . . . . . . Garrison 1 | . . . . 1 . . Intercept . | . . . . . . . Construction Impeded . | . . . . . . . Haulers Reinforced . | . . . . . . . Stealth | -11 -10 -9 -8 -7 -6 -5 --------- Run | Scr Mat Mat Mat Fac Fac Fac Distress Signals 2 | . . . 1 . . 1 Communications Jammed . | . . . . . . . Distress Signals . | . . . . . . . Times Spotted 67 | . 4 8 20 4 13 18 Peak Tracking Total 20 | . 3 7 20 3 6 14 Tactical Retreats 5 | . . . . 1 3 1 Traps | -11 -10 -9 -8 -7 -6 -5 ------- Run | Scr Mat Mat Mat Fac Fac Fac Traps Triggered 3 | . . . . 1 1 1 Indirectly . | . . . . . . . Trap Hack Attempts . | . . . . . . . Triggered . | . . . . . . . Disarmed . | . . . . . . . Reprogrammed . | . . . . . . . Reused . | . . . . . . . Traps Extracted . | . . . . . . . Installed . | . . . . . . . Triggered . | . . . . . . . Machines | -11 -10 -9 -8 -7 -6 -5 ---------- Run | Scr Mat Mat Mat Fac Fac Fac Machines Disabled 7 | . . . . 7 . . Max in Single Turn 7 | . . . . 7 . . Machines Sabotaged . | . . . . . . . Garrisons Compromised . | . . . . . . . Overloaded Fab Kills . | . . . . . . . Fab Network Shutdowns . | . . . . . . . Hacking | -11 -10 -9 -8 -7 -6 -5 --------- Run | Scr Mat Mat Mat Fac Fac Fac Machines Accessed 7 | . . 1 2 2 1 1 Terminals 4 | . . 1 2 . . 1 Fabricators 1 | . . . . 1 . . Repair Stations 1 | . . . . . 1 . Recycling Units . | . . . . . . . Scanalyzers . | . . . . . . . Garrison Access 1 | . . . . 1 . . Total Hacks 18 | . . 4 6 4 1 3 Successful 5 | . . 1 1 2 1 . Failed 13 | . . 3 5 2 . 3 Catastrophic 2 | . . . 2 . . . Database Lockouts . | . . . . . . . Manual 10 | . . 4 3 . . 3 Terminals 13 | . . 4 6 . . 3 Fabricators 2 | . . . . 2 . . Repair Stations 1 | . . . . . 1 . Recycling Units . | . . . . . . . Scanalyzers . | . . . . . . . Garrison Access 2 | . . . . 2 . . Terminal Hacks 2 | . . 1 1 . . . Terminal Index 2 | . . 1 1 . . . Fabricator Hacks 2 | . . . . 2 . . Network Status 1 | . . . . 1 . . Build 1 | . . . . 1 . . Repair Station Hacks 1 | . . . . . 1 . Refit 1 | . . . . . 1 . Recycling Unit Hacks . | . . . . . . . Scanalyzer . | . . . . . . . Garrison Access Hacks . | . . . . . . . Unauthorized Hacks . | . . . . . . . Terminals . | . . . . . . . Fabricators . | . . . . . . . Repair Stations . | . . . . . . . Recycling Units . | . . . . . . . Scanalyzers . | . . . . . . . Garrison Access . | . . . . . . . Data Cores Recovered . | . . . . . . . Used . | . . . . . . . Hacking Detections 6 | . . 1 2 1 1 1 Full Trace Events 4 | . . 1 2 1 . . Feedback Events . | . . . . . . . Feedback Blocked . | . . . . . . . Robot Schematics Acquired . | . . . . . . . Robots Built . | . . . . . . . Matter . | . . . . . . . Time . | . . . . . . . Total Robot Build Rating . | . . . . . . . Part Schematics Acquired . | . . . . . . . Parts Built . | . . . . . . . Matter 190 | . . . . 190 . . Time 95 | . . . . 95 . . Total Part Build Rating . | . . . . . . . Parts Repaired . | . . . . . . . Time . | . . . . . . . Parts Recycled . | . . . . . . . Recycled Matter . | . . . . . . . Retrieved Matter . | . . . . . . . Retrieved Components . | . . . . . . . Parts Scanalyzed . | . . . . . . . Part Schematics Acquired . | . . . . . . . Parts Damaged . | . . . . . . . Bothacking | -11 -10 -9 -8 -7 -6 -5 ------------ Run | Scr Mat Mat Mat Fac Fac Fac Used RIF Installer . | . . . . . . . Robots Hacked . | . . . . . . . Non-combat . | . . . . . . . Combat . | . . . . . . . Robot Hacks Applied . | . . . . . . . Relay Couplers Released . | . . . . . . . Robots Rewired 1 | . . . . 1 . . Allies Hacked . | . . . . . . . Hacks Repelled . | . . . . . . . Allies | -11 -10 -9 -8 -7 -6 -5 -------- Run | Scr Mat Mat Mat Fac Fac Fac Total Allies 1 | . . . . 1 . . Largest Group 1 | . . . . 1 . . Highest-Rated Group 12 | . . . . 12 . . Highest-Rated Ally 12 | . . . . 12 . . Total Orders . | . . . . . . . Ally Attacks 4 | . . . . 4 . . Total Damage 44 | . . . . 44 . . Kills . | . . . . . . . Allies Corrupted . | . . . . . . . Allies Melted . | . . . . . . . Intel | -11 -10 -9 -8 -7 -6 -5 ------- Run | Scr Mat Mat Mat Fac Fac Fac Robot Analysis Total . | . . . . . . . Derelict Logs Recovered . | . . . . . . . Drone Launches . | . . . . . . . Drone Recoveries . | . . . . . . . Exploration | -11 -10 -9 -8 -7 -6 -5 ------------- Run | Scr Mat Mat Mat Fac Fac Fac Turns Passed 1361 | 11 57 79 87 120 160 847 Spaces Moved 1087 | 22 61 124 181 197 257 245 Core 530 | 22 36 36 27 88 133 188 Treads . | . . . . . . . Legs . | . . . . . . . Wheels . | . . . . . . . Hover 8 | . . . . . 8 . Flight 549 | . 25 88 154 109 116 57 Fastest Speed 31 | 50 40 37 31 34 40 40 Average Speed 45 | 50 45 41 35 42 48 55 Slowest Speed 200 | 50 50 50 50 100 120 200 Overloaded Moves . | . . . . . . . Propulsion Burnouts . | . . . . . . . Robots Hopped 12 | . . . 8 3 1 . Cave-ins Triggered 3 | . . . . . . 3 Exploration Rate (%) 16 | 4 21 21 36 7 14 9 Regions Visited 6 Branch Regions . Pre-discovered Areas . | . . . . . . . Known Exits Taken . | . . . . . . . Unknown Exits Taken 6 | 1 1 1 1 1 1 . Scrap Searched . | . . . . . . . Spaces Dug 20 | . . . . . 1 19 Terrain Destroyed 31 | . . . . 11 1 19 Melee 20 | . . . . . 1 19 Projectile . | . . . . . . . AOE 11 | . . . . 11 . . Terrain Rammed . | . . . . . . . Walls Destroyed . | . . . . . . . Machines Disabled . | . . . . . . . Actions | -11 -10 -9 -8 -7 -6 -5 --------- Run | Scr Mat Mat Mat Fac Fac Fac Total 1850 | 21 75 150 195 222 276 911 Wait 669 | . . 21 19 . . 629 Move 1057 | 21 60 123 165 190 254 244 Hop 11 | . . . 7 3 1 . Pick Up 9 | . . 3 . . 5 1 Fast Attach 10 | . 2 2 1 1 2 2 Attach 11 | . . . 3 1 3 4 Detach 4 | . . . . . . 4 Swap 1 | . . 1 . . . . Drop 1 | . . . . . . 1 Fire 28 | . 13 . . 7 8 . Melee 24 | . . . . . 1 23 Ram 4 | . . . . . 2 2 Kick . | . . . . . . . Crush . | . . . . . . . Escape Stasis 17 | . . . . 16 . 1 Rewire 4 | . . . . 4 . . Trap . | . . . . . . . Miscellaneous . | . . . . . . . Route ------- -11/Scrapyard -10/Materials -9/Materials -8/Materials -7/Factory -6/Factory -5/Factory History --------- Turn | Location | Event 6 | -11/Scrapyard | Discovered new exit (range 12) 12 | -11/Scrapyard | Entered Materials 53 | -10/Materials | Core integrity fell below 50% 68 | -10/Materials | Discovered new exit (range 4) 69 | -10/Materials | Entered another Materials area 69 | -9/Materials | Evolved 2 slots: Utility x2 147 | -9/Materials | Discovered new exit (range 4) 148 | -9/Materials | Entered another Materials area 148 | -8/Materials | Evolved 2 slots: Propulsion x2 232 | -8/Materials | Discovered new exit (range 10) 235 | -8/Materials | Entered Factory 235 | -7/Factory | Evolved 2 slots: Utility x2 256 | -7/Factory | Garrison activated, responded to threat 318 | -7/Factory | Discovered new exit (range 16) 343 | -7/Factory | Lost 5 parts (1p3n1w) 355 | -7/Factory | Entered another Factory area 355 | -6/Factory | Evolved 2 slots: Utility x2 481 | -6/Factory | Spotted B-75 Beast 483 | -6/Factory | Lost 6 parts (1p2n1u2w) 492 | -6/Factory | Discovered new exit (range 21) 515 | -6/Factory | Entered another Factory area 515 | -5/Factory | Evolved 2 slots: Utility x2 523 | -5/Factory | Build established: Mutant 610 | -5/Factory | Crushed by falling debris 612 | -5/Factory | Crushed by falling debris 622 | -5/Factory | Crushed by falling debris 622 | -5/Factory | System corruption reached 10% 653 | -5/Factory | Lost 3 parts (1n2u) 1327 | -5/Factory | Core integrity fell below 50% 1352 | -5/Factory | Core integrity fell below 20% 1362 | -5/Factory | Destroyed by S-27 Virus with Autogun Last Messages --------------- 01104_ System corrupted: Matter fused (-9). 01119_ LD%SZC8PFBOLN ELZ4B%ZGDBK7RHM|L6KF 01147_ Imp. System Backup Module purges 1% of system corruption (3%). 01214_ UPMP6HK:783|ZKN&UOUGC4YN 01265_ ALERT: Rogue bot located, Programmers report to Factory Zone 7A. 01275_ Hvy. Flail destroyed. 01275_ Lgt. Nuclear Core destroyed. 01285_ W-25 Informer sends out distress signal. 01295_ Triggered Blade Trap. 01295_ Massive razor-sharp blades shoot up from within the floor. 01309_ Acquired Prototype Impact Weapon. 01317_ Connecting with Terminal... 01317_ Current location identified: Factory 01321_ Slammed into T-07 Excavator. 01332_ O-16 Technician: "IFF HANDSHAKE FAILED. SECURING TERMINAL." 01334_ O-24 Administrator: "IFF HANDSHAKE FAILED. SECURING TERMINAL." 01336_ ALERT: Hostiles spotted, dispatching reinforcements to Terminal F020. 01361_ Slammed into S-27 Virus. 01361_ Penetrated by Slug. 01362_ ALERT: Hostiles spotted, dispatching reinforcements to Terminal F002. Map ----- +----------------------------------------------------+ | ??????????? ??# #################+####????? | | ?????????? ??# #????? | | ?????????? ???# #????? | | ???????????###???# #????? | | ?????????????????# #????? | | ?????????????????# #????? | | ?????????????????#########+############ #????? | | ??????????????????????????????????????# ###+## | | ??????????????????????????????????????# | | ??????????????????????????????????????# | | ??????????????????????????????????????# """ """ | | ??????????????????????????????????????# """ """ | | ??????????????????????????????# ??????# """ """ | | ??????????????????????????????# ????# | | ??????????????????????????????# ??# """ | | ??????????????????????????????# # """ !/= | | ??????????????????????????????# + """ //= | | ??????????????????????????????# # == | | ??????????????????????????????# ??# | | ?????????????????????########## ????# | | ?????????????????????# !! ###########+#### | | ?????????????????????# """ !! ## # | | ????????????????????##s""" !! ## """"""""" # | | ????????????????????# s"""s ## + | | ????????????????????## sYs s ## ""T"" # | | ?????????????????????# s@sss ## """"" # | | ?????????????????????# "" "" ## # | | ?????????????????????# ""S"" ######/######### | | ?????????????????????# """" p###??# ######### | | ??????????????###############/# /?# | | ????????????? # [?# | | ??????????????# # ! # """" | | ??????????????# """" # # """" | | ??????????????# """" # = + """" | | ??????????????# ]!] """" # # """" #### | | ??????????????# !! """" ###### """" #??? | | ??????????????# !! """" """" #??? | | ??????????????# """" #### #??? | | ??????????????# #??# #??? | | ??????????????# #??# #??? | | ??????????????# #??# #??? | | ??????????????# #??###### #??? | | ??????????????# ####???????# #??? | | ??????????????# #??????????# #??? | | ??????????????# #??????????# #??? | | ??????????????########## #??????????# #??? | | ???????????????????????#/############ #??? | | ???????????????????????# ! # #??? | | ???????????????????????# # #??? | | ???????????????????????# """" """" # #??? | +----------------------------------------------------+ Best States ------------- Heat Dissipation 40 Energy Generation 14 Energy Capacity 275 Matter Stores 300 Matter Capacity 300 Sight Range 22 Robot Scan Range 13 Terrain Scan Density 10 Evasion (%) 63 Item Schematics ----------------- None Robot Schematics ------------------ None Fabricated ------------ Nothing Alien Tech Used ----------------- None Achievements -------------- None Challenges ------------ None Game ------ Seed SensorEnergyRouter Manual? 0 Play Time 00:21:52 Cumulative 50.9 hours Start 2020.09.23 @ 18:48:21 End 2020.09.23 @ 19:05:24 Sessions 1 Manual Loads 0 Difficulty Rogue Special Mode None Game No. 55 Rogue 32 Adventurer 22 Explorer 1 Win Type - Total 1 Types 1/0/0/0/0/0/0/0/0 Lore% 25 Gallery% 38 Achievement% 31 Wizard Run 0 Options --------- ASCII 0 Keyboard 0 Movement Numpad Keybinds 0 Fullscreen 1 Font 14/SmallcapsGlow Map View 84x54 Tactical HUD 1 Map Filters NONE Filters NONE Steam 1 RUN: 9ec9ec95-2c77-4f98-a852-66f093af0d9f